[Event "*** SCC Grand Prix: Titled Tuesday Blitz"]
[Site "Chess.com"]
[Date "2020.08.11"]
[Round "10"]
[White "MNyuyu"]
[Black "igorknyazev"]
[Result "0-1"]
[WhiteElo "2321"]
[BlackElo "1987"]
[TimeControl "180+1"]
[EndTime "11:56:25 PDT"]
[Termination "igorknyazev won by checkmate"]

1. d4 {[%clk 0:03:00.9]} 1... Nf6 {[%clk 0:02:59.5]} 2. Nf3 {[%clk 0:03:00.6]}
2... e6 {[%clk 0:02:58.8]} 3. Bg5 {[%clk 0:03:00.3]} 3... c5 {[%clk 0:02:57.5]}
4. e3 {[%clk 0:03:00.1]} 4... cxd4 {[%clk 0:02:57]} 5. exd4 {[%clk 0:02:59.8]}
5... Be7 {[%clk 0:02:51.1]} 6. c3 {[%clk 0:02:58.9]} 6... Qb6 {[%clk 0:02:49]}
7. b3 {[%clk 0:02:55]} 7... O-O {[%clk 0:02:47.6]} 8. Bd3 {[%clk 0:02:54.1]}
8... Nd5 {[%clk 0:02:44.6]} 9. Bxe7 {[%clk 0:02:51.5]} 9... Nxe7 {[%clk
0:02:44.3]} 10. Nbd2 {[%clk 0:02:51]} 10... Nbc6 {[%clk 0:02:26.1]} 11. O-O
{[%clk 0:02:45.5]} 11... f5 {[%clk 0:02:23.4]} 12. Qe2 {[%clk 0:02:43.3]} 12...
Nd5 {[%clk 0:02:21]} 13. Rac1 {[%clk 0:02:36.3]} 13... Nf4 {[%clk 0:02:20.3]}
14. Qe3 {[%clk 0:02:36.1]} 14... Nxd3 {[%clk 0:02:20.2]} 15. Qxd3 {[%clk
0:02:36]} 15... Qa6 {[%clk 0:02:03.4]} 16. Qc2 {[%clk 0:02:27.6]} 16... b5
{[%clk 0:01:59.8]} 17. Rfe1 {[%clk 0:02:25.8]} 17... Bb7 {[%clk 0:01:59.1]} 18.
h3 {[%clk 0:02:19.9]} 18... Rac8 {[%clk 0:01:59.4]} 19. Qb1 {[%clk 0:02:15.6]}
19... Ne7 {[%clk 0:01:49.1]} 20. Ne5 {[%clk 0:02:12.4]} 20... Qd6 {[%clk
0:01:46.5]} 21. Ndf3 {[%clk 0:02:09.6]} 21... Nc6 {[%clk 0:01:41.4]} 22. Red1
{[%clk 0:02:03.7]} 22... Qe7 {[%clk 0:01:33.5]} 23. c4 {[%clk 0:02:02]} 23... d6
{[%clk 0:01:30]} 24. Nxc6 {[%clk 0:02:00.6]} 24... Bxc6 {[%clk 0:01:28]} 25. d5
{[%clk 0:01:59.9]} 25... Bb7 {[%clk 0:01:19.4]} 26. Re1 {[%clk 0:01:54.3]} 26...
e5 {[%clk 0:01:17.1]} 27. Nd4 {[%clk 0:01:53.3]} 27... bxc4 {[%clk 0:01:09.1]}
28. bxc4 {[%clk 0:01:48.5]} 28... Rb8 {[%clk 0:00:58.5]} 29. Qc2 {[%clk
0:01:39.3]} 29... Qf6 {[%clk 0:00:48]} 30. Ne6 {[%clk 0:01:35.3]} 30... Rfe8
{[%clk 0:00:43.9]} 31. Rb1 {[%clk 0:01:34.3]} 31... Qg6 {[%clk 0:00:37.1]} 32.
Nc7 {[%clk 0:01:23.5]} 32... Rec8 {[%clk 0:00:32.2]} 33. Ne6 {[%clk 0:01:17]}
33... Bxd5 {[%clk 0:00:26.9]} 34. Rxb8 {[%clk 0:01:14.4]} 34... Qxg2# {[%clk
0:00:24.4]} 0-1

[Event "*** SCC Grand Prix: Titled Tuesday Blitz"]
[Site "Chess.com"]
[Date "2020.08.11"]
[Round "10"]
[White "ftorodent"]
[Black "Sergey85Rodchenkov"]
[Result "1-0"]
[WhiteElo "2663"]
[BlackElo "2486"]
[TimeControl "180+1"]
[EndTime "11:56:27 PDT"]
[Termination "ftorodent won by resignation"]

1. d4 {[%clk 0:03:00.9]} 1... Nf6 {[%clk 0:02:59.4]} 2. c4 {[%clk 0:03:00.4]}
2... e6 {[%clk 0:02:59.4]} 3. Nf3 {[%clk 0:03:00.2]} 3... b6 {[%clk 0:02:59.3]}
4. a3 {[%clk 0:03:00.3]} 4... Bb7 {[%clk 0:02:58.9]} 5. Nc3 {[%clk 0:02:59.2]}
5... Ne4 {[%clk 0:02:59.4]} 6. Nxe4 {[%clk 0:02:58.5]} 6... Bxe4 {[%clk
0:03:00]} 7. e3 {[%clk 0:02:59.1]} 7... f5 {[%clk 0:02:59.4]} 8. Bd3 {[%clk
0:02:58.3]} 8... Bb7 {[%clk 0:02:59]} 9. Qe2 {[%clk 0:02:54.4]} 9... Be7 {[%clk
0:02:59]} 10. e4 {[%clk 0:02:54]} 10... O-O {[%clk 0:02:55.8]} 11. exf5 {[%clk
0:02:38.6]} 11... exf5 {[%clk 0:02:55.1]} 12. O-O {[%clk 0:02:38.7]} 12... d6
{[%clk 0:02:30.2]} 13. Re1 {[%clk 0:02:30.6]} 13... Rf7 {[%clk 0:02:13.2]} 14.
d5 {[%clk 0:01:59.6]} 14... Nd7 {[%clk 0:02:09.7]} 15. Nd4 {[%clk 0:01:59.6]}
15... Nc5 {[%clk 0:02:03.1]} 16. Bxf5 {[%clk 0:01:58]} 16... Bf6 {[%clk
0:01:59.6]} 17. Ne6 {[%clk 0:01:57]} 17... Re7 {[%clk 0:01:05.3]} 18. Nxd8
{[%clk 0:01:26]} 18... Rxe2 {[%clk 0:01:04]} 19. Rxe2 {[%clk 0:01:25.9]} 19...
Rxd8 {[%clk 0:01:04.7]} 20. Be3 {[%clk 0:01:24.7]} 20... Na4 {[%clk 0:00:57.7]}
21. Rb1 {[%clk 0:01:18.6]} 21... Ba6 {[%clk 0:00:56]} 22. Rc2 {[%clk 0:01:17.2]}
22... g6 {[%clk 0:00:53.9]} 23. Be6+ {[%clk 0:01:16.4]} 23... Kg7 {[%clk
0:00:54.3]} 24. b3 {[%clk 0:01:13.5]} 24... Nc3 {[%clk 0:00:50.8]} 25. Re1
{[%clk 0:01:10.5]} 25... b5 {[%clk 0:00:41.9]} 26. Bd2 {[%clk 0:01:06.8]} 26...
bxc4 {[%clk 0:00:39.4]} 27. Bxc3 {[%clk 0:01:06.7]} 27... cxb3 {[%clk
0:00:39.5]} 28. Bxf6+ {[%clk 0:01:06.5]} 28... Kxf6 {[%clk 0:00:40.1]} 29. Rc3
{[%clk 0:00:59.9]} 29... Rb8 {[%clk 0:00:39.6]} 30. Rb1 {[%clk 0:00:59.6]} 30...
b2 {[%clk 0:00:37.5]} 31. Rc2 {[%clk 0:00:59.9]} 31... Bd3 {[%clk 0:00:37]} 32.
Rcxb2 {[%clk 0:00:59]} 1-0

[Event "*** SCC Grand Prix: Titled Tuesday Blitz"]
[Site "Chess.com"]
[Date "2020.08.11"]
[Round "10"]
[White "NateSolon"]
[Black "LubovMarkelova"]
[Result "1-0"]
[WhiteElo "2499"]
[BlackElo "2275"]
[TimeControl "180+1"]
[EndTime "11:56:29 PDT"]
[Termination "NateSolon won on time"]

1. d4 {[%clk 0:03:00.9]} 1... Nf6 {[%clk 0:02:59]} 2. c4 {[%clk 0:03:00.2]} 2...
e6 {[%clk 0:02:57.9]} 3. Nf3 {[%clk 0:03:00]} 3... d5 {[%clk 0:02:57.9]} 4. Nc3
{[%clk 0:02:59.3]} 4... Bb4 {[%clk 0:02:55.9]} 5. cxd5 {[%clk 0:02:58.9]} 5...
exd5 {[%clk 0:02:43.3]} 6. Bf4 {[%clk 0:02:57.8]} 6... Nc6 {[%clk 0:02:38.5]} 7.
e3 {[%clk 0:02:55.6]} 7... Bf5 {[%clk 0:02:37.1]} 8. Be2 {[%clk 0:02:49.9]} 8...
Ne4 {[%clk 0:02:34.1]} 9. Qb3 {[%clk 0:02:28.5]} 9... g5 {[%clk 0:02:08.6]} 10.
Be5 {[%clk 0:02:19.2]} 10... f6 {[%clk 0:02:03.6]} 11. Bg3 {[%clk 0:02:11.7]}
11... h5 {[%clk 0:02:02.7]} 12. h4 {[%clk 0:02:03.5]} 12... Nxg3 {[%clk
0:02:01.5]} 13. fxg3 {[%clk 0:02:03.5]} 13... Qd6 {[%clk 0:01:51.5]} 14. Kf2
{[%clk 0:02:00.1]} 14... O-O-O {[%clk 0:01:29.7]} 15. Rac1 {[%clk 0:01:56.4]}
15... gxh4 {[%clk 0:01:27.6]} 16. Nxh4 {[%clk 0:01:45.6]} 16... Be6 {[%clk
0:01:17.3]} 17. Nb5 {[%clk 0:01:45.4]} 17... Qd7 {[%clk 0:01:09]} 18. Nxa7+
{[%clk 0:01:16.4]} 18... Nxa7 {[%clk 0:01:06.6]} 19. Qxb4 {[%clk 0:01:16.5]}
19... Nc6 {[%clk 0:01:00.4]} 20. Qa4 {[%clk 0:01:13.2]} 20... Kb8 {[%clk
0:00:55.1]} 21. Bb5 {[%clk 0:01:11.6]} 21... Qc8 {[%clk 0:00:08.8]} 22. Rxc6
{[%clk 0:01:08.5]} 1-0

[Event "*** SCC Grand Prix: Titled Tuesday Blitz"]
[Site "Chess.com"]
[Date "2020.08.11"]
[Round "10"]
[White "politeplayer"]
[Black "albano87"]
[Result "0-1"]
[WhiteElo "2265"]
[BlackElo "2562"]
[TimeControl "180+1"]
[EndTime "11:56:31 PDT"]
[Termination "albano87 won on time"]

1. e4 {[%clk 0:03:00.9]} 1... c5 {[%clk 0:02:59.5]} 2. Nf3 {[%clk 0:03:00.5]}
2... Nc6 {[%clk 0:02:58.2]} 3. d4 {[%clk 0:02:58.5]} 3... cxd4 {[%clk
0:02:59.1]} 4. Nxd4 {[%clk 0:02:58.7]} 4... Nf6 {[%clk 0:02:59.4]} 5. Nc3 {[%clk
0:02:58.6]} 5... d6 {[%clk 0:02:59.5]} 6. Bg5 {[%clk 0:02:55.3]} 6... Bd7 {[%clk
0:02:59]} 7. Be2 {[%clk 0:02:51.5]} 7... Nxd4 {[%clk 0:02:55.7]} 8. Qxd4 {[%clk
0:02:49.8]} 8... Qa5 {[%clk 0:02:55.5]} 9. Bd2 {[%clk 0:02:49]} 9... e5 {[%clk
0:02:53.5]} 10. Qd3 {[%clk 0:02:45.5]} 10... Qc7 {[%clk 0:02:39.2]} 11. Nb5
{[%clk 0:02:32]} 11... Bxb5 {[%clk 0:02:34.6]} 12. Qxb5+ {[%clk 0:02:31.2]}
12... Qc6 {[%clk 0:02:35.5]} 13. Qb3 {[%clk 0:02:10.6]} 13... a6 {[%clk
0:02:33.9]} 14. O-O-O {[%clk 0:01:52.3]} 14... Be7 {[%clk 0:02:31.9]} 15. Bg5
{[%clk 0:01:40.6]} 15... O-O {[%clk 0:02:29.1]} 16. Bxf6 {[%clk 0:01:33]} 16...
Bxf6 {[%clk 0:02:26.8]} 17. f3 {[%clk 0:01:21.9]} 17... a5 {[%clk 0:02:14.9]}
18. Bb5 {[%clk 0:01:10.7]} 18... Qc5 {[%clk 0:02:10.8]} 19. Rd5 {[%clk
0:01:04.4]} 19... Qf2 {[%clk 0:02:09.9]} 20. Rxd6 {[%clk 0:00:55.3]} 20... Qxg2
{[%clk 0:02:06.2]} 21. Rhd1 {[%clk 0:00:49.9]} 21... Qxh2 {[%clk 0:02:01.9]} 22.
Bc4 {[%clk 0:00:38.6]} 22... a4 {[%clk 0:01:59]} 23. Qxb7 {[%clk 0:00:33.6]}
23... a3 {[%clk 0:01:51.9]} 24. Bxf7+ {[%clk 0:00:20.6]} 24... Kh8 {[%clk
0:01:50.8]} 25. Bb3 {[%clk 0:00:20.5]} 25... Qf4+ {[%clk 0:01:46]} 26. Kb1
{[%clk 0:00:19.1]} 26... Qxf3 {[%clk 0:01:45.6]} 27. bxa3 {[%clk 0:00:13.8]}
27... Rab8 {[%clk 0:01:37.4]} 28. Qd5 {[%clk 0:00:09.9]} 28... Bg5 {[%clk
0:01:32.4]} 29. a4 {[%clk 0:00:08.1]} 29... Be3 {[%clk 0:01:30.7]} 30. Qxe5
{[%clk 0:00:06.8]} 30... Bf4 {[%clk 0:01:29.1]} 31. Qd5 {[%clk 0:00:01.3]} 31...
Rxb3+ {[%clk 0:01:25.8]} 0-1

[Event "*** SCC Grand Prix: Titled Tuesday Blitz"]
[Site "Chess.com"]
[Date "2020.08.11"]
[Round "10"]
[White "chenxiaoyuer"]
[Black "annamaja"]
[Result "0-1"]
[WhiteElo "2421"]
[BlackElo "2268"]
[TimeControl "180+1"]
[EndTime "11:56:46 PDT"]
[Termination "annamaja won by checkmate"]

1. e4 {[%clk 0:03:00.9]} 1... e6 {[%clk 0:02:59.9]} 2. d4 {[%clk 0:03:00.7]}
2... d5 {[%clk 0:03:00.6]} 3. Nd2 {[%clk 0:03:00.2]} 3... Nf6 {[%clk 0:03:00.7]}
4. e5 {[%clk 0:03:00.2]} 4... Nfd7 {[%clk 0:03:01.4]} 5. Bd3 {[%clk 0:03:00.7]}
5... c5 {[%clk 0:03:01.9]} 6. c3 {[%clk 0:03:01.6]} 6... Nc6 {[%clk 0:03:02.6]}
7. Ngf3 {[%clk 0:03:01.6]} 7... cxd4 {[%clk 0:02:57.8]} 8. cxd4 {[%clk
0:02:59.8]} 8... f6 {[%clk 0:02:54.1]} 9. exf6 {[%clk 0:02:50.1]} 9... Qxf6
{[%clk 0:02:55]} 10. O-O {[%clk 0:02:45.5]} 10... Bd6 {[%clk 0:02:43.2]} 11. Re1
{[%clk 0:02:37.5]} 11... O-O {[%clk 0:02:42]} 12. Bxh7+ {[%clk 0:02:35.9]} 12...
Kxh7 {[%clk 0:02:38.1]} 13. Rxe6 {[%clk 0:02:35.1]} 13... Bxh2+ {[%clk
0:02:23.9]} 14. Kxh2 {[%clk 0:02:20.2]} 14... Qf4+ {[%clk 0:02:09.9]} 15. g3
{[%clk 0:01:59.2]} 15... Qg4 {[%clk 0:02:09.8]} 16. Kg2 {[%clk 0:01:44.7]} 16...
Nxd4 {[%clk 0:01:31.8]} 17. Qh1+ {[%clk 0:01:35.1]} 17... Kg8 {[%clk 0:01:31.2]}
18. Nxd4 {[%clk 0:01:34.1]} 18... Qxd4 {[%clk 0:01:25.4]} 19. Nf3 {[%clk
0:01:30.8]} 19... Rxf3 {[%clk 0:01:17.1]} 20. Kxf3 {[%clk 0:01:26.2]} 20... Ne5+
{[%clk 0:01:13.3]} 21. Rxe5 {[%clk 0:01:21.9]} 21... Qxe5 {[%clk 0:01:09.7]} 22.
Qh4 {[%clk 0:01:13.2]} 22... Bf5 {[%clk 0:00:58.1]} 23. Kg2 {[%clk 0:01:03.6]}
23... Be4+ {[%clk 0:00:38.7]} 24. Kg1 {[%clk 0:00:59.7]} 24... Rf8 {[%clk
0:00:28.3]} 25. Be3 {[%clk 0:00:50.6]} 25... Qxb2 {[%clk 0:00:20.8]} 26. Rc1
{[%clk 0:00:49.3]} 26... Qe2 {[%clk 0:00:17.8]} 27. Rc7 {[%clk 0:00:43.9]} 27...
Qd1+ {[%clk 0:00:16.3]} 28. Kh2 {[%clk 0:00:39.8]} 28... Qh1# {[%clk 0:00:17.2]}
0-1

[Event "*** SCC Grand Prix: Titled Tuesday Blitz"]
[Site "Chess.com"]
[Date "2020.08.11"]
[Round "10"]
[White "OK97"]
[Black "sodastream007"]
[Result "1/2-1/2"]
[WhiteElo "2831"]
[BlackElo "2274"]
[TimeControl "180+1"]
[EndTime "11:56:47 PDT"]
[Termination "Game drawn by agreement"]

1. c4 {[%clk 0:03:00.9]} 1... c6 {[%clk 0:02:59]} 2. d4 {[%clk 0:02:58.4]} 2...
d5 {[%clk 0:02:58.9]} 3. Nf3 {[%clk 0:02:55.7]} 3... Nf6 {[%clk 0:02:57.9]} 4.
Qb3 {[%clk 0:02:56.3]} 4... e6 {[%clk 0:02:51.5]} 5. Bg5 {[%clk 0:02:55.3]} 5...
dxc4 {[%clk 0:02:49.7]} 6. Qxc4 {[%clk 0:02:55.1]} 6... Nbd7 {[%clk 0:02:49.4]}
7. Nc3 {[%clk 0:02:48.4]} 7... Nb6 {[%clk 0:02:44.6]} 8. Qd3 {[%clk 0:02:46]}
8... Be7 {[%clk 0:02:43.3]} 9. e4 {[%clk 0:02:43.6]} 9... h6 {[%clk 0:02:43]}
10. Bh4 {[%clk 0:02:39.7]} 10... O-O {[%clk 0:02:29.5]} 11. Be2 {[%clk 0:02:40]}
11... c5 {[%clk 0:02:28.7]} 12. e5 {[%clk 0:02:22.4]} 12... Nfd5 {[%clk
0:02:25.8]} 13. Bxe7 {[%clk 0:02:15.1]} 13... Qxe7 {[%clk 0:02:23.3]} 14. O-O
{[%clk 0:02:01.9]} 14... Nf4 {[%clk 0:02:21.6]} 15. Qe4 {[%clk 0:02:00.9]} 15...
Nxe2+ {[%clk 0:02:20.5]} 16. Nxe2 {[%clk 0:02:00.4]} 16... cxd4 {[%clk
0:02:21.4]} 17. Nexd4 {[%clk 0:02:00.6]} 17... Nd5 {[%clk 0:02:17.7]} 18. Rac1
{[%clk 0:01:29.6]} 18... b6 {[%clk 0:02:07.1]} 19. Nc6 {[%clk 0:01:27.7]} 19...
Qd7 {[%clk 0:02:03.1]} 20. b4 {[%clk 0:01:15]} 20... Bb7 {[%clk 0:02:00]} 21. b5
{[%clk 0:01:15.5]} 21... a6 {[%clk 0:02:00.2]} 22. a4 {[%clk 0:01:15.6]} 22...
axb5 {[%clk 0:02:00.1]} 23. axb5 {[%clk 0:01:16.5]} 23... Rfc8 {[%clk
0:01:54.4]} 24. Nfd4 {[%clk 0:01:16.8]} 24... Ra4 {[%clk 0:01:50.3]} 25. Qe2
{[%clk 0:00:57.6]} 25... Nf4 {[%clk 0:01:45.1]} 26. Qg4 {[%clk 0:00:38.3]} 26...
Rxd4 {[%clk 0:01:27.8]} 27. Nxd4 {[%clk 0:00:35.3]} 27... Rxc1 {[%clk
0:01:03.4]} 28. Qxf4 {[%clk 0:00:30]} 28... Rxf1+ {[%clk 0:01:02.8]} 29. Kxf1
{[%clk 0:00:30.1]} 29... Qd5 {[%clk 0:01:03.4]} 30. f3 {[%clk 0:00:27.5]} 30...
Qc4+ {[%clk 0:01:03.4]} 31. Kf2 {[%clk 0:00:27.7]} 31... Bd5 {[%clk 0:00:59.4]}
32. h4 {[%clk 0:00:25.2]} 32... Qa2+ {[%clk 0:00:58.7]} 33. Kg3 {[%clk
0:00:25.3]} 33... Bc4 {[%clk 0:00:53.9]} 1/2-1/2

[Event "*** SCC Grand Prix: Titled Tuesday Blitz"]
[Site "Chess.com"]
[Date "2020.08.11"]
[Round "10"]
[White "floplover"]
[Black "korbul"]
[Result "0-1"]
[WhiteElo "2287"]
[BlackElo "2543"]
[TimeControl "180+1"]
[EndTime "11:56:48 PDT"]
[Termination "korbul won by checkmate"]

1. d4 {[%clk 0:03:00.9]} 1... Nf6 {[%clk 0:02:59.6]} 2. c4 {[%clk 0:03:00.9]}
2... e6 {[%clk 0:02:59.4]} 3. Nc3 {[%clk 0:03:01]} 3... Bb4 {[%clk 0:02:59.2]}
4. Qc2 {[%clk 0:03:00.9]} 4... O-O {[%clk 0:02:58.5]} 5. e4 {[%clk 0:03:00.5]}
5... d6 {[%clk 0:02:57.9]} 6. e5 {[%clk 0:03:00.4]} 6... dxe5 {[%clk 0:02:56.9]}
7. dxe5 {[%clk 0:03:01.3]} 7... Ng4 {[%clk 0:02:57.1]} 8. Nf3 {[%clk 0:02:59.1]}
8... Nc6 {[%clk 0:02:57.2]} 9. Bf4 {[%clk 0:02:50]} 9... Nd4 {[%clk 0:02:56.8]}
10. Qe4 {[%clk 0:02:49.1]} 10... c5 {[%clk 0:02:32.2]} 11. Rd1 {[%clk
0:01:23.9]} 11... f5 {[%clk 0:02:17.9]} 12. Qb1 {[%clk 0:01:13.5]} 12... Qa5
{[%clk 0:02:14.8]} 13. Qc1 {[%clk 0:00:46.6]} 13... b5 {[%clk 0:01:47]} 14. h3
{[%clk 0:00:36]} 14... Nh6 {[%clk 0:01:38.9]} 15. Bxh6 {[%clk 0:00:33.1]} 15...
gxh6 {[%clk 0:01:39]} 16. Nxd4 {[%clk 0:00:24.3]} 16... cxd4 {[%clk 0:01:37.6]}
17. Rxd4 {[%clk 0:00:25.2]} 17... Bb7 {[%clk 0:01:23.4]} 18. Be2 {[%clk
0:00:25.3]} 18... Bc5 {[%clk 0:01:14.2]} 19. Rd7 {[%clk 0:00:19]} 19... Bc6
{[%clk 0:01:13.7]} 20. Rd3 {[%clk 0:00:15.8]} 20... b4 {[%clk 0:01:09.7]} 21.
Rg3+ {[%clk 0:00:14.8]} 21... Kh8 {[%clk 0:01:09.5]} 22. Qxh6 {[%clk 0:00:14.9]}
22... Rf7 {[%clk 0:01:08.5]} 23. Nd1 {[%clk 0:00:11.4]} 23... b3+ {[%clk
0:01:07.7]} 24. Nc3 {[%clk 0:00:11.7]} 24... bxa2 {[%clk 0:01:07.4]} 25. O-O
{[%clk 0:00:10.1]} 25... a1=Q {[%clk 0:01:07.5]} 26. Rxa1 {[%clk 0:00:09.5]}
26... Qxa1+ {[%clk 0:01:07.4]} 27. Kh2 {[%clk 0:00:10.4]} 27... Bxf2 {[%clk
0:00:51.5]} 28. Rg5 {[%clk 0:00:07.6]} 28... Qg1# {[%clk 0:00:50.4]} 0-1

[Event "*** SCC Grand Prix: Titled Tuesday Blitz"]
[Site "Chess.com"]
[Date "2020.08.11"]
[Round "10"]
[White "queen_iryna"]
[Black "Ariadna_Atreides"]
[Result "1-0"]
[WhiteElo "2247"]
[BlackElo "2053"]
[TimeControl "180+1"]
[EndTime "11:56:49 PDT"]
[Termination "queen_iryna won by resignation"]

1. Nf3 {[%clk 0:03:00.9]} 1... d5 {[%clk 0:02:47.7]} 2. c4 {[%clk 0:03:00.6]}
2... c6 {[%clk 0:02:43.8]} 3. b3 {[%clk 0:02:58.5]} 3... Nf6 {[%clk 0:02:34]} 4.
Bb2 {[%clk 0:02:56.9]} 4... g6 {[%clk 0:02:34]} 5. g3 {[%clk 0:02:55.6]} 5...
Bg7 {[%clk 0:02:32.7]} 6. d3 {[%clk 0:02:55.8]} 6... Nbd7 {[%clk 0:02:25.5]} 7.
Nbd2 {[%clk 0:02:55.5]} 7... O-O {[%clk 0:02:24.6]} 8. Bg2 {[%clk 0:02:55.6]}
8... Re8 {[%clk 0:02:23.3]} 9. O-O {[%clk 0:02:55.2]} 9... e5 {[%clk 0:02:20.9]}
10. cxd5 {[%clk 0:02:53.6]} 10... Nxd5 {[%clk 0:02:08.4]} 11. Nc4 {[%clk
0:02:39.1]} 11... b5 {[%clk 0:01:50.3]} 12. Nd6 {[%clk 0:02:37.9]} 12... Re6
{[%clk 0:01:43]} 13. Nxc8 {[%clk 0:02:37.5]} 13... Rxc8 {[%clk 0:01:42]} 14. Nd2
{[%clk 0:02:31.9]} 14... f5 {[%clk 0:01:12.3]} 15. Rc1 {[%clk 0:02:30.1]} 15...
N7f6 {[%clk 0:01:11.4]} 16. a3 {[%clk 0:01:55.4]} 16... a6 {[%clk 0:01:04.3]}
17. Rc5 {[%clk 0:01:32.5]} 17... Bf8 {[%clk 0:01:01.4]} 18. Rc2 {[%clk
0:01:30.4]} 18... Qb6 {[%clk 0:00:53.1]} 19. Qa1 {[%clk 0:01:22.6]} 19... Qb8
{[%clk 0:00:43.5]} 20. Rfc1 {[%clk 0:01:15.5]} 20... Kf7 {[%clk 0:00:27.7]} 21.
Nf3 {[%clk 0:01:13]} 21... Bd6 {[%clk 0:00:11.2]} 22. Ng5+ {[%clk 0:01:12.5]}
22... Ke7 {[%clk 0:00:11.7]} 23. Nxe6 {[%clk 0:01:12]} 23... Kxe6 {[%clk
0:00:12.6]} 24. Rxc6 {[%clk 0:01:06.3]} 24... Rxc6 {[%clk 0:00:11.1]} 25. Rxc6
{[%clk 0:01:07.2]} 25... Qb7 {[%clk 0:00:10.2]} 26. Rxd6+ {[%clk 0:01:04.9]}
26... Kxd6 {[%clk 0:00:09.3]} 27. Bxe5+ {[%clk 0:01:05.8]} 27... Ke6 {[%clk
0:00:04.1]} 28. Bxf6 {[%clk 0:01:05.7]} 28... Qc6 {[%clk 0:00:02.5]} 29. Qe5+
{[%clk 0:01:04.6]} 29... Kf7 {[%clk 0:00:02.1]} 30. Bxd5+ {[%clk 0:01:03.3]} 1-0

[Event "*** SCC Grand Prix: Titled Tuesday Blitz"]
[Site "Chess.com"]
[Date "2020.08.11"]
[Round "10"]
[White "Gulkov_Igor"]
[Black "chess94cu"]
[Result "1-0"]
[WhiteElo "2433"]
[BlackElo "2570"]
[TimeControl "180+1"]
[EndTime "11:56:54 PDT"]
[Termination "Gulkov_Igor won by resignation"]

1. Nf3 {[%clk 0:03:00.9]} 1... Nf6 {[%clk 0:02:59.6]} 2. c4 {[%clk 0:03:00.3]}
2... e6 {[%clk 0:02:59.6]} 3. Nc3 {[%clk 0:03:00.2]} 3... d5 {[%clk 0:02:59.3]}
4. d4 {[%clk 0:02:59.7]} 4... Nbd7 {[%clk 0:02:59.3]} 5. cxd5 {[%clk 0:02:58.9]}
5... exd5 {[%clk 0:02:59.4]} 6. Bf4 {[%clk 0:02:58.8]} 6... c6 {[%clk
0:02:57.9]} 7. e3 {[%clk 0:02:58.9]} 7... Nh5 {[%clk 0:02:58.4]} 8. Be5 {[%clk
0:02:57.6]} 8... Nxe5 {[%clk 0:02:54.3]} 9. Nxe5 {[%clk 0:02:57.1]} 9... Nf6
{[%clk 0:02:54]} 10. Bd3 {[%clk 0:02:56.1]} 10... Bd6 {[%clk 0:02:53.5]} 11. O-O
{[%clk 0:02:54.6]} 11... Qe7 {[%clk 0:02:53.6]} 12. f4 {[%clk 0:02:53.5]} 12...
g6 {[%clk 0:02:41.2]} 13. Qf3 {[%clk 0:02:50.9]} 13... O-O {[%clk 0:02:39]} 14.
Rae1 {[%clk 0:02:49.8]} 14... Ne8 {[%clk 0:02:33.7]} 15. e4 {[%clk 0:02:41.9]}
15... dxe4 {[%clk 0:02:34.6]} 16. Bxe4 {[%clk 0:02:41.2]} 16... Ng7 {[%clk
0:02:31.1]} 17. Nxc6 {[%clk 0:02:27.7]} 17... Qc7 {[%clk 0:01:47.1]} 18. Ne5
{[%clk 0:02:26]} 18... a6 {[%clk 0:01:46.7]} 19. Rc1 {[%clk 0:02:08.4]} 19...
Qd8 {[%clk 0:01:45.2]} 20. Bxb7 {[%clk 0:01:53.9]} 20... Bxb7 {[%clk 0:01:41.9]}
21. Qxb7 {[%clk 0:01:53.8]} 21... Nf5 {[%clk 0:01:41.7]} 22. Qe4 {[%clk
0:01:45.8]} 22... Qb6 {[%clk 0:01:27.9]} 23. Nc4 {[%clk 0:01:42.6]} 23... Qb8
{[%clk 0:01:20]} 24. Nxd6 {[%clk 0:01:28]} 24... Qxd6 {[%clk 0:01:20.9]} 25. d5
{[%clk 0:01:27.2]} 25... Rfe8 {[%clk 0:01:18.1]} 26. Qd3 {[%clk 0:01:26]} 26...
Re3 {[%clk 0:01:13.3]} 27. Qd2 {[%clk 0:01:25.1]} 27... Rae8 {[%clk 0:01:13]}
28. Kh1 {[%clk 0:00:46.2]} 28... Qe7 {[%clk 0:01:06.6]} 29. Qf2 {[%clk
0:00:42.2]} 29... h5 {[%clk 0:00:59.8]} 30. Rcd1 {[%clk 0:00:41.4]} 30... h4
{[%clk 0:00:56.2]} 31. d6 {[%clk 0:00:40.9]} 31... Nxd6 {[%clk 0:00:56.1]} 32.
Nd5 {[%clk 0:00:40.5]} 1-0

[Event "*** SCC Grand Prix: Titled Tuesday Blitz"]
[Site "Chess.com"]
[Date "2020.08.11"]
[Round "10"]
[White "Alberquintin"]
[Black "Sadykov_Ramil"]
[Result "0-1"]
[WhiteElo "2523"]
[BlackElo "2434"]
[TimeControl "180+1"]
[EndTime "11:56:59 PDT"]
[Termination "Sadykov_Ramil won by resignation"]

1. e4 {[%clk 0:03:00.9]} 1... c5 {[%clk 0:02:57]} 2. Nf3 {[%clk 0:03:00.6]} 2...
e6 {[%clk 0:02:52.7]} 3. d4 {[%clk 0:03:00.4]} 3... cxd4 {[%clk 0:02:53.6]} 4.
Nxd4 {[%clk 0:03:01.2]} 4... Nf6 {[%clk 0:02:51.4]} 5. Nc3 {[%clk 0:03:01.1]}
5... Nc6 {[%clk 0:02:51.5]} 6. a3 {[%clk 0:02:59.5]} 6... Be7 {[%clk 0:02:42.7]}
7. Be2 {[%clk 0:02:55.4]} 7... d5 {[%clk 0:02:40.5]} 8. exd5 {[%clk 0:02:54.1]}
8... Nxd5 {[%clk 0:02:37.8]} 9. Nxd5 {[%clk 0:02:54.3]} 9... exd5 {[%clk
0:02:38.7]} 10. O-O {[%clk 0:02:53.5]} 10... O-O {[%clk 0:02:34.5]} 11. Be3
{[%clk 0:02:52.1]} 11... Bf6 {[%clk 0:02:30.8]} 12. c3 {[%clk 0:02:51.1]} 12...
Re8 {[%clk 0:02:27.5]} 13. Bb5 {[%clk 0:02:39.4]} 13... Bd7 {[%clk 0:02:26.9]}
14. Nxc6 {[%clk 0:02:39.2]} 14... bxc6 {[%clk 0:02:24.3]} 15. Bd3 {[%clk
0:02:36.6]} 15... g6 {[%clk 0:02:17.5]} 16. Rc1 {[%clk 0:02:35.1]} 16... Bg5
{[%clk 0:02:05.5]} 17. Bxg5 {[%clk 0:02:31.4]} 17... Qxg5 {[%clk 0:02:06.4]} 18.
Qf3 {[%clk 0:02:25]} 18... Re7 {[%clk 0:01:52.6]} 19. Qg3 {[%clk 0:02:11.6]}
19... Qxg3 {[%clk 0:01:51.8]} 20. hxg3 {[%clk 0:02:12.5]} 20... Rae8 {[%clk
0:01:47]} 21. b4 {[%clk 0:02:05.4]} 21... Re5 {[%clk 0:01:34.5]} 22. Rcd1 {[%clk
0:02:01]} 22... Bf5 {[%clk 0:01:30.3]} 23. Bxf5 {[%clk 0:01:59.5]} 23... Rxf5
{[%clk 0:01:31.2]} 24. Rfe1 {[%clk 0:01:56.7]} 24... Rfe5 {[%clk 0:01:29.3]} 25.
Kf1 {[%clk 0:01:48.3]} 25... Kf8 {[%clk 0:01:17.4]} 26. Rxe5 {[%clk 0:01:41.7]}
26... Rxe5 {[%clk 0:01:18.3]} 27. Re1 {[%clk 0:01:42.3]} 27... Rh5 {[%clk
0:00:50.8]} 28. g4 {[%clk 0:01:38.6]} 28... Rh1+ {[%clk 0:00:47.1]} 29. Ke2
{[%clk 0:01:38.4]} 29... Rh4 {[%clk 0:00:42.8]} 30. Kf3 {[%clk 0:01:37.3]} 30...
h5 {[%clk 0:00:42.9]} 31. gxh5 {[%clk 0:01:37.1]} 31... Rxh5 {[%clk 0:00:43.8]}
32. Re2 {[%clk 0:01:18.3]} 32... Rh4 {[%clk 0:00:37.8]} 33. Ke3 {[%clk
0:01:14.1]} 33... Ke7 {[%clk 0:00:35]} 34. g3 {[%clk 0:01:07.9]} 34... Rh1
{[%clk 0:00:30.7]} 35. Kd4+ {[%clk 0:00:56.6]} 35... Kd6 {[%clk 0:00:23.9]} 36.
Re8 {[%clk 0:00:56.2]} 36... Rd1+ {[%clk 0:00:20.5]} 0-1